[Event "23rd ETCC Women 2021"]
[Site "Catez"]
[Date "2021.11.12"]
[Round "1.60"]
[White "Barbier, Astrid"]
[Black "Krivec, Jana"]
[Result "1/2-1/2"]
[ECO "C60"]
[WhiteElo "1915"]
[BlackElo "2227"]
[Annotator "NA"]
[PlyCount "80"]
[EventDate "2021.11.08"]
[EventType "team-tourn"]
[EventCountry "SLO"]
[SourceTitle "playchess.com"]
[Source "ChessBase"]
[SourceQuality "1"]
[WhiteTeam "Belgium"]
[BlackTeam "Slovenia"]
[WhiteTeamCountry "BEL"]
[BlackTeamCountry "SLO"]
[TimeControl "40/5400+30:1800+30"]

1. e4 {[%emt 0:00:03]} e5 {[%emt 0:00:05]} 2. Nf3 {[%emt 0:00:06]} Nc6 {
[%emt 0:00:04]} 3. Bb5 {[%emt 0:00:08]} Nge7 {[%emt 0:00:06]} 4. c3 {[%emt 0:
02:34]} a6 {[%emt 0:01:42]} 5. Ba4 {[%emt 0:00:14]} g6 {[%emt 0:00:23]} 6. O-O
{[%emt 0:01:24]} Bg7 {[%emt 0:00:13]} 7. d4 {[%emt 0:04:12]} exd4 {[%emt 0:00:
19]} 8. cxd4 {[%emt 0:00:12]} b5 {[%emt 0:00:05]} 9. Bb3 {[%emt 0:01:06]} O-O {
[%emt 0:02:27]} 10. a3 {[%emt 0:03:47]} d6 {[%emt 0:02:23]} 11. h3 {[%emt 0:01:
18]} Na5 {[%emt 0:06:14]} 12. Ba2 {[%emt 0:02:41]} c5 {[%emt 0:02:38]} 13. Be3
{[%emt 0:05:58]} c4 {[%emt 0:15:33]} 14. Nc3 {[%emt 0:02:44]} f5 {[%emt 0:03:
58]} 15. Bg5 {[%emt 0:10:00]} h6 {[%emt 0:10:49]} 16. Be3 {[%emt 0:03:37]} fxe4
{[%emt 0:14:51]} 17. Nxe4 {[%emt 0:00:56]} Bb7 {[%emt 0:01:47]} 18. Qc2 {
[%emt 0:06:32]} Nf5 {[%emt 0:02:29]} 19. Rae1 {[%emt 0:08:34]} Nc6 {[%emt 0:13:
36]} 20. Ng3 {[%emt 0:03:12]} Nce7 {[%emt 0:02:23]} 21. Qd1 {[%emt 0:07:00]}
Bxf3 {[%emt 0:00:39]} 22. Qxf3 {[%emt 0:02:43]} Nxd4 {[%emt 0:00:17]} 23. Qd1 {
[%emt 0:01:01]} Ndf5 {[%emt 0:03:04]} 24. Bc1 {[%emt 0:03:05]} Nxg3 {[%emt 0:
02:10]} 25. fxg3 {[%emt 0:00:06]} Rxf1+ {[%emt 0:00:11]} 26. Rxf1 {[%emt 0:00:
09]} Qb6+ {[%emt 0:06:50]} 27. Kh2 {[%emt 0:01:10]} Rf8 {[%emt 0:01:50]} 28.
Re1 {[%emt 0:06:59]} Nf5 {[%emt 0:00:25]} 29. Bb1 {[%emt 0:01:28]} Kh7 {
[%emt 0:03:11]} 30. Re6 {[%emt 0:03:24]} Be5 {[%emt 0:01:27]} 31. Bxf5 {
[%emt 0:01:53]} Rxf5 {[%emt 0:00:04]} 32. Qg4 {[%emt 0:05:06]} Bf6 {[%emt 0:00:
55]} 33. Rxf6 {[%emt 0:02:20]} Rxf6 {[%emt 0:00:03]} 34. Qd7+ {[%emt 0:00:08]}
Kg8 {[%emt 0:00:13]} 35. Bxh6 {[%emt 0:00:43]} Rf7 {[%emt 0:00:07]} 36. Qe8+ {
[%emt 0:00:17]} Kh7 {[%emt 0:00:02]} 37. Qxf7+ {[%emt 0:00:13]} Kxh6 {[%emt 0:
00:03]} 38. Qf8+ {[%emt 0:02:21]} Kh7 {[%emt 0:00:06]} 39. Qf7+ {[%emt 0:00:07]
} Kh6 {[%emt 0:00:05]} 40. Qf8+ {[%emt 0:00:19]} Kh7 {[%emt 0:00:04]} 1/2-1/2

[Event "23rd ETCC Women 2021"]
[Site "Catez"]
[Date "2021.11.13"]
[Round "2.2"]
[White "Gunina, Valentina"]
[Black "Garcia Martin, Marta"]
[Result "1-0"]
[ECO "D37"]
[WhiteElo "2480"]
[BlackElo "2324"]
[Annotator "ChessBase"]
[PlyCount "99"]
[EventDate "2021.11.08"]
[EventType "team-tourn"]
[EventCountry "SLO"]
[SourceTitle "playchess.com"]
[Source "ChessBase"]
[SourceQuality "1"]
[WhiteTeam "Russia"]
[BlackTeam "Spain"]
[WhiteTeamCountry "RUS"]
[BlackTeamCountry "ESP"]
[TimeControl "40/5400+30:1800+30"]

1. d4 {[%emt 0:00:04]} d5 {[%emt 0:00:07]} 2. c4 {[%emt 0:00:06]} e6 {[%emt 0:
00:05]} 3. Nf3 {[%emt 0:00:08]} Nf6 {[%emt 0:00:10]} 4. Nc3 {[%emt 0:00:08]} a6
{[%emt 0:00:13]} 5. cxd5 {[%emt 0:00:38]} exd5 {[%emt 0:00:07]} 6. Bg5 {
[%emt 0:00:05]} Be6 {[%emt 0:00:16]} 7. Bxf6 {[%emt 0:00:19]} Qxf6 {[%emt 0:00:
08]} 8. Qb3 {[%emt 0:00:04]} Ra7 {[%emt 0:00:46]} 9. a3 {[%emt 0:00:29]} b5 {
[%emt 0:01:39]} 10. e3 {[%emt 0:10:46]} c6 {[%emt 0:15:46]} 11. Rc1 {[%emt 0:
01:29]} Bd6 {[%emt 0:02:00]} 12. Bd3 {[%emt 0:03:07]} Bg4 {[%emt 0:12:31]} 13.
Be2 {[%emt 0:01:28]} O-O {[%emt 0:00:59]} 14. h3 {[%emt 0:00:41]} Bf5 {[%emt 0:
05:15]} 15. Qd1 {[%emt 0:06:09]} Nd7 {[%emt 0:05:10]} 16. Bd3 {[%emt 0:06:55]}
Nb6 {[%emt 0:06:23]} 17. O-O {[%emt 0:00:46]} Nc4 {[%emt 0:06:10]} 18. Bxf5
Qxf5 {[%emt 0:00:06]} 19. Qe2 {[%emt 0:08:06]} a5 {[%emt 0:06:16]} 20. a4 bxa4
{[%emt 0:03:18]} 21. e4 {[%emt 0:07:33]} Qe6 {[%emt 0:01:44]} 22. e5 {[%emt 0:
03:17]} Be7 {[%emt 0:01:53]} 23. Nxa4 {[%emt 0:00:40]} Rb8 {[%emt 0:01:17]} 24.
Rc2 {[%emt 0:00:46]} Rab7 {[%emt 0:04:23]} 25. Ra1 {[%emt 0:03:57]} Rb5 {
[%emt 0:11:52]} 26. Ne1 {[%emt 0:01:56]} c5 {[%emt 0:02:08]} 27. dxc5 {[%emt 0:
03:52]} Qxe5 {[%emt 0:00:45]} 28. Nd3 {[%emt 0:00:34]} Qxe2 29. Rxe2 {[%emt 0:
00:01]} Bf6 {[%emt 0:02:43]} 30. Rae1 {[%emt 0:00:10]} h6 {[%emt 0:04:46]} 31.
Nf4 {[%emt 0:03:10]} Nxb2 {[%emt 0:01:27]} 32. Nb6 {[%emt 0:00:40]} Bg5 {
[%emt 0:05:31]} 33. Nfxd5 {[%emt 0:01:33]} Rxc5 {[%emt 0:00:26]} 34. Nd7 {
[%emt 0:02:34]} Rxd5 {[%emt 0:00:04]} 35. Nxb8 {[%emt 0:00:05]} Bf6 {[%emt 0:
01:03]} 36. Nc6 {[%emt 0:03:10]} Rc5 {[%emt 0:00:29]} 37. Ne5 {[%emt 0:01:01]}
Rd5 {[%emt 0:00:33]} 38. Ng4 {[%emt 0:01:57]} Bd4 {[%emt 0:00:25]} 39. Rd2 {
[%emt 0:00:56]} Nc4 {[%emt 0:00:23]} 40. Rd3 {[%emt 0:00:31]} Nb2 {[%emt 0:00:
25]} 41. Rf3 {[%emt 0:33:43]} f6 {[%emt 0:08:29]} 42. Re8+ {[%emt 0:00:00]} Kh7
{[%emt 0:07:40]} 43. Re7 {[%emt 0:00:00]} Kh8 {[%emt 0:06:29]} 44. Rb3 {
[%emt 0:00:00]} a4 {[%emt 0:01:16]} 45. Rbb7 {[%emt 0:00:00]} f5 {[%emt 0:00:
57]} 46. Ne3 {[%emt 0:00:00]} Ra5 {[%emt 0:00:57]} 47. Nc2 {[%emt 0:00:00]} Bf6
{[%emt 0:01:15]} 48. Re8+ {[%emt 0:00:00]} Kh7 {[%emt 0:00:04]} 49. Re6 {
[%emt 0:00:00]} Bc3 {[%emt 0:02:18]} 50. Rc6 {[%emt 0:00:00]} 1-0

[Event "23rd ETCC Women 2021"]
[Site "Catez"]
[Date "2021.11.13"]
[Round "2.3"]
[White "Matnadze, Ana"]
[Black "Shuvalova, Polina"]
[Result "0-1"]
[ECO "A14"]
[WhiteElo "2418"]
[BlackElo "2515"]
[Annotator "ChessBase"]
[PlyCount "158"]
[EventDate "2021.11.08"]
[EventType "team-tourn"]
[EventCountry "SLO"]
[SourceTitle "playchess.com"]
[Source "ChessBase"]
[SourceQuality "1"]
[WhiteTeam "Spain"]
[BlackTeam "Russia"]
[WhiteTeamCountry "ESP"]
[BlackTeamCountry "RUS"]
[TimeControl "40/5400+30:1800+30"]

1. Nf3 {[%emt 0:00:05]} d5 {[%emt 0:00:33]} 2. g3 {[%emt 0:00:13]} Nf6 {
[%emt 0:00:17]} 3. Bg2 {[%emt 0:00:13]} e6 {[%emt 0:00:05]} 4. O-O {[%emt 0:00:
08]} Be7 {[%emt 0:00:09]} 5. c4 {[%emt 0:00:22]} O-O {[%emt 0:00:12]} 6. b3 {
[%emt 0:00:47]} b6 {[%emt 0:00:18]} 7. cxd5 {[%emt 0:00:23]} Nxd5 {[%emt 0:00:
57]} 8. Bb2 {[%emt 0:00:10]} Bb7 {[%emt 0:00:10]} 9. d4 {[%emt 0:00:20]} Nd7 {
[%emt 0:01:07]} 10. Re1 {[%emt 0:00:34]} N5f6 {[%emt 0:04:37]} 11. Nc3 {
[%emt 0:02:57]} c5 {[%emt 0:02:29]} 12. e4 {[%emt 0:00:42]} cxd4 {[%emt 0:01:
34]} 13. Nxd4 {[%emt 0:00:06]} Bb4 {[%emt 0:10:54]} 14. e5 {[%emt 0:15:00]}
Bxc3 {[%emt 0:11:35]} 15. Bxc3 {[%emt 0:00:27]} Nd5 {[%emt 0:01:17]} 16. Bb2 {
[%emt 0:02:34]} a6 {[%emt 0:04:51]} 17. Nf5 {[%emt 0:02:57]} exf5 {[%emt 0:01:
26]} 18. Bxd5 {[%emt 0:00:06]} Bxd5 {[%emt 0:01:13]} 19. Qxd5 {[%emt 0:00:05]}
Nc5 {[%emt 0:01:39]} 20. Red1 {[%emt 0:02:41]} Rc8 {[%emt 0:05:05]} 21. Qf3 {
[%emt 0:10:40]} Qg5 {[%emt 0:01:05]} 22. h4 {[%emt 0:13:54]} Qg4 {[%emt 0:01:
08]} 23. Qxg4 {[%emt 0:00:53]} fxg4 {[%emt 0:00:04]} 24. Rd4 {[%emt 0:03:24]}
h5 {[%emt 0:01:22]} 25. Rc1 {[%emt 0:09:12]} Ne6 {[%emt 0:15:14]} 26. Rd6 {
[%emt 0:00:51]} Rfd8 {[%emt 0:01:39]} 27. Rxc8 {[%emt 0:24:07]} Rxc8 {[%emt 0:
00:04]} 28. Bd4 {[%emt 0:01:16]} Rc2 {[%emt 0:07:46]} 29. Be3 {[%emt 0:03:57]}
Rxa2 {[%emt 0:00:23]} 30. Rxb6 {[%emt 0:00:06]} Ra1+ {[%emt 0:00:44]} 31. Kg2 {
[%emt 0:00:03]} Kh7 {[%emt 0:00:33]} 32. b4 {[%emt 0:02:57]} Kg6 {[%emt 0:02:
39]} 33. Rb7 {[%emt 0:00:54]} Rb1 {[%emt 0:01:56]} 34. Rb6 {[%emt 0:00:23]} Kf5
{[%emt 0:01:14]} 35. Rxa6 {[%emt 0:00:09]} Rxb4 {[%emt 0:00:08]} 36. Ra7 {
[%emt 0:00:45]} Kg6 {[%emt 0:00:29]} 37. Ra5 {[%emt 0:01:13]} Rb7 {[%emt 0:00:
52]} 38. Kf1 {[%emt 0:00:12]} Kf5 {[%emt 0:00:58]} 39. Ke2 {[%emt 0:00:09]} g6
{[%emt 0:03:28]} 40. Kf1 {[%emt 0:01:57]} Ke4 {[%emt 0:00:56]} 41. Kg2 {
[%emt 0:30:29]} Rd7 {[%emt 0:33:41]} 42. Rb5 {[%emt 0:01:37]} Re7 {[%emt 0:04:
13]} 43. Ra5 {[%emt 0:00:00]} Rb7 {[%emt 0:00:00]} 44. Kh2 {[%emt 0:00:00]} Ng7
{[%emt 0:00:00]} 45. Ra4+ {[%emt 0:00:00]} Kd5 {[%emt 0:00:00]} 46. Ra5+ {
[%emt 0:00:00]} Ke6 {[%emt 0:00:00]} 47. Bf4 {[%emt 0:00:00]} Nf5 {[%emt 0:00:
00]} 48. Ra4 {[%emt 0:00:00]} Kd5 {[%emt 0:00:00]} 49. Ra1 {[%emt 0:00:00]} Nd4
{[%emt 0:00:00]} 50. Kg2 {[%emt 0:00:00]} Nf3 {[%emt 0:00:00]} 51. Kf1 {
[%emt 0:00:00]} Rb4 {[%emt 0:00:00]} 52. Ra5+ {[%emt 0:00:00]} Ke4 {[%emt 0:00:
00]} 53. Ra1 {[%emt 0:00:00]} Kf5 {[%emt 0:00:00]} 54. Ra7 {[%emt 0:00:00]}
Rb1+ {[%emt 0:00:00]} 55. Ke2 {[%emt 0:00:00]} Ke4 {[%emt 0:00:00]} 56. Ra4+ {
[%emt 0:00:00]} Nd4+ {[%emt 0:00:00]} 57. Kd2 {[%emt 0:00:00]} Rb2+ {[%emt 0:
00:00]} 58. Ke1 {[%emt 0:00:00]} Kd3 {[%emt 0:01:05]} 59. Ra3+ {[%emt 0:00:00]}
Rb3 {[%emt 0:08:29]} 60. Rxb3+ {[%emt 0:00:00]} Nxb3 {[%emt 0:00:01]} 61. Kf1 {
[%emt 0:00:00]} Nd4 {[%emt 0:00:07]} 62. Kg2 {[%emt 0:00:00]} Nf3 {[%emt 0:00:
58]} 63. Kf1 {[%emt 0:00:00]} Ke4 {[%emt 0:00:07]} 64. Be3 {[%emt 0:00:00]}
Nxe5 {[%emt 0:00:11]} 65. Kg2 {[%emt 0:00:00]} Kd3 {[%emt 0:00:16]} 66. Kf1 {
[%emt 0:00:06]} Nc4 {[%emt 0:00:42]} 67. Ba7 {[%emt 0:00:26]} Kd2 {[%emt 0:00:
06]} 68. Bc5 {[%emt 0:03:09]} Kd1 {[%emt 0:00:16]} 69. Ba7 {[%emt 0:00:20]}
Nd2+ {[%emt 0:00:03]} 70. Kg2 {[%emt 0:00:04]} Ke2 {[%emt 0:00:03]} 71. Bb6 {
[%emt 0:00:17]} Nf3 {[%emt 0:00:04]} 72. Bc5 {[%emt 0:00:21]} Ne1+ {[%emt 0:00:
05]} 73. Kg1 {[%emt 0:00:04]} Kf3 {[%emt 0:00:03]} 74. Bb6 {[%emt 0:00:23]} Nd3
{[%emt 0:00:03]} 75. Bd4 {[%emt 0:00:49]} f5 {[%emt 0:00:12]} 76. Be3 {[%emt 0:
01:13]} f4 {[%emt 0:00:33]} 77. gxf4 {[%emt 0:04:35]} g3 {[%emt 0:00:37]} 78.
f5 {[%emt 0:00:34]} gxf5 {[%emt 0:00:00]} 79. Bb6 {[%emt 0:00:16]} Nxf2 {
[%emt 0:00:38]} 0-1

[Event "23rd ETCC Women 2021"]
[Site "Catez"]
[Date "2021.11.13"]
[Round "2.4"]
[White "Kashlinskaya, Alina"]
[Black "Eizaguerri Floris, Maria"]
[Result "1-0"]
[ECO "D37"]
[WhiteElo "2482"]
[BlackElo "2328"]
[Annotator "ChessBase"]
[PlyCount "67"]
[EventDate "2021.11.08"]
[EventType "team-tourn"]
[EventCountry "SLO"]
[SourceTitle "playchess.com"]
[Source "ChessBase"]
[SourceQuality "1"]
[WhiteTeam "Russia"]
[BlackTeam "Spain"]
[WhiteTeamCountry "RUS"]
[BlackTeamCountry "ESP"]
[TimeControl "40/5400+30:1800+30"]

1. d4 {[%emt 0:00:04]} d5 {[%emt 0:00:09]} 2. c4 {[%emt 0:00:07]} e6 {[%emt 0:
00:04]} 3. Nf3 {[%emt 0:00:15]} Nf6 {[%emt 0:00:08]} 4. Nc3 {[%emt 0:00:07]}
Be7 {[%emt 0:00:19]} 5. Bf4 {[%emt 0:00:14]} O-O {[%emt 0:00:46]} 6. e3 {
[%emt 0:00:10]} b6 {[%emt 0:00:21]} 7. Qc2 {[%emt 0:00:23]} Bb7 {[%emt 0:12:45]
} 8. cxd5 {[%emt 0:00:23]} Nxd5 {[%emt 0:01:11]} 9. Nxd5 {[%emt 0:00:28]} Qxd5
{[%emt 0:02:08]} 10. Bd3 {[%emt 0:00:24]} h6 {[%emt 0:09:06]} 11. Qxc7 {
[%emt 0:07:46]} Bb4+ {[%emt 0:05:30]} 12. Kf1 {[%emt 0:13:05]} Ba6 {[%emt 0:10:
09]} 13. Bxa6 {[%emt 0:04:53]} Nxa6 {[%emt 0:00:22]} 14. Qc2 {[%emt 0:06:04]}
Rac8 {[%emt 0:03:22]} 15. Qe2 {[%emt 0:02:23]} Qa5 {[%emt 0:04:48]} 16. h4 {
[%emt 0:08:33]} Qa4 {[%emt 0:05:11]} 17. Kg1 {[%emt 0:18:02]} b5 {[%emt 0:11:
39]} 18. b3 {[%emt 0:01:06]} Qa5 {[%emt 0:00:42]} 19. Rh3 {[%emt 0:01:57]} Be7
{[%emt 0:07:20]} 20. Rg3 {[%emt 0:06:56]} Kh8 {[%emt 0:01:11]} 21. Ne5 {
[%emt 0:00:15]} Qc3 {[%emt 0:06:08]} 22. Rf1 {[%emt 0:01:55]} Qc2 {[%emt 0:00:
24]} 23. Qg4 {[%emt 0:05:39]} Qh7 {[%emt 0:00:51]} 24. Nxf7+ {[%emt 0:01:54]}
Rxf7 {[%emt 0:00:20]} 25. Qxe6 {[%emt 0:00:05]} Qf5 {[%emt 0:05:35]} 26. Qxa6 {
[%emt 0:00:32]} Bxh4 {[%emt 0:00:42]} 27. Rh3 {[%emt 0:01:42]} Be7 {[%emt 0:08:
41]} 28. Be5 {[%emt 0:00:35]} Bf6 {[%emt 0:02:57]} 29. Rf3 {[%emt 0:00:57]} Qd7
{[%emt 0:00:38]} 30. Bxf6 {[%emt 0:00:58]} Rc6 {[%emt 0:00:50]} 31. Qxb5 {
[%emt 0:01:13]} gxf6 {[%emt 0:00:21]} 32. Rg3 {[%emt 0:04:32]} Rg7 {[%emt 0:00:
53]} 33. Rxg7 {[%emt 0:00:12]} Kxg7 {[%emt 0:00:05]} 34. d5 {[%emt 0:00:26]}
1-0

[Event "23rd ETCC Women 2021"]
[Site "Catez"]
[Date "2021.11.13"]
[Round "2.5"]
[White "Dzagnidze, Nana"]
[Black "Bulmaga, Irina"]
[Result "1-0"]
[ECO "E62"]
[WhiteElo "2524"]
[BlackElo "2405"]
[Annotator "ChessBase"]
[PlyCount "70"]
[EventDate "2021.11.08"]
[EventType "team-tourn"]
[EventCountry "SLO"]
[SourceTitle "playchess.com"]
[Source "ChessBase"]
[SourceQuality "1"]
[WhiteTeam "Georgia"]
[BlackTeam "Romania"]
[WhiteTeamCountry "GEO"]
[BlackTeamCountry "ROU"]
[TimeControl "40/5400+30:1800+30"]

1. d4 {[%emt 0:00:04]} Nf6 {[%emt 0:00:08]} 2. c4 {[%emt 0:00:09]} g6 {[%emt 0:
00:07]} 3. Nf3 {[%emt 0:00:15]} Bg7 {[%emt 0:00:07]} 4. g3 {[%emt 0:00:18]} O-O
{[%emt 0:00:15]} 5. Bg2 {[%emt 0:00:11]} d6 {[%emt 0:00:07]} 6. Nc3 {[%emt 0:
00:36]} c6 {[%emt 0:00:19]} 7. e4 {[%emt 0:00:25]} c5 {[%emt 0:00:22]} 8. d5 {
[%emt 0:07:22]} b5 {[%emt 0:00:13]} 9. e5 {[%emt 0:10:40]} dxe5 {[%emt 0:22:23]
} 10. Nxe5 {[%emt 0:07:00]} Bb7 {[%emt 0:06:22]} 11. Nc6 {[%emt 0:19:01]} Nxc6
{[%emt 0:27:58]} 12. dxc6 {[%emt 0:00:08]} Qxd1+ {[%emt 0:00:24]} 13. Kxd1 {
[%emt 0:15:36]} Rad8+ {[%emt 0:01:35]} 14. Ke2 {[%emt 0:01:15]} b4 {[%emt 0:03:
57]} 15. cxb7 {[%emt 0:09:11]} bxc3 {[%emt 0:00:08]} 16. bxc3 {[%emt 0:00:09]}
Nd7 {[%emt 0:06:03]} 17. Rd1 {[%emt 0:00:30]} Bxc3 {[%emt 0:06:35]} 18. Rb1 {
[%emt 0:00:13]} Nb8 {[%emt 0:11:49]} 19. Be3 {[%emt 0:01:18]} Bd4 {[%emt 0:03:
59]} 20. Bxd4 {[%emt 0:05:09]} cxd4 {[%emt 0:01:10]} 21. Rb5 {[%emt 0:00:31]}
Rd6 {[%emt 0:03:33]} 22. Ra5 {[%emt 0:01:40]} a6 {[%emt 0:02:27]} 23. c5 {
[%emt 0:05:36]} Re6+ {[%emt 0:01:10]} 24. Kf1 {[%emt 0:01:50]} Rd8 {[%emt 0:00:
19]} 25. c6 {[%emt 0:06:35]} Nxc6 {[%emt 0:00:20]} 26. Rxa6 {[%emt 0:00:07]}
Nb8 {[%emt 0:00:53]} 27. Rxe6 {[%emt 0:00:04]} fxe6 {[%emt 0:00:04]} 28. Rc1 {
[%emt 0:00:10]} Kf7 {[%emt 0:01:04]} 29. Rc8 {[%emt 0:00:09]} Rf8 {[%emt 0:00:
36]} 30. a4 {[%emt 0:00:57]} Na6 {[%emt 0:00:10]} 31. Be4 {[%emt 0:00:51]} Kg7
{[%emt 0:00:45]} 32. Bd3 {[%emt 0:00:22]} Nb8 {[%emt 0:00:06]} 33. a5 {[%emt 0:
00:14]} e5 {[%emt 0:00:30]} 34. a6 {[%emt 0:00:30]} e4 {[%emt 0:00:30]} 35.
Rxf8 {[%emt 0:00:30]} Kxf8 {[%emt 0:00:30]} 1-0

[Event "23rd ETCC Women 2021"]
[Site "Catez"]
[Date "2021.11.13"]
[Round "2.6"]
[White "Peptan, Corina-Isabela"]
[Black "Javakhishvili, Lela"]
[Result "1/2-1/2"]
[ECO "E14"]
[WhiteElo "2385"]
[BlackElo "2446"]
[Annotator "ChessBase"]
[PlyCount "121"]
[EventDate "2021.11.08"]
[EventType "team-tourn"]
[EventCountry "SLO"]
[SourceTitle "playchess.com"]
[Source "ChessBase"]
[SourceQuality "1"]
[WhiteTeam "Romania"]
[BlackTeam "Georgia"]
[WhiteTeamCountry "ROU"]
[BlackTeamCountry "GEO"]
[TimeControl "40/5400+30:1800+30"]

1. Nf3 {[%emt 0:00:03]} Nf6 {[%emt 0:00:25]} 2. c4 {[%emt 0:00:19]} e6 {
[%emt 0:00:09]} 3. e3 {[%emt 0:00:14]} b6 {[%emt 0:01:53]} 4. b3 {[%emt 0:01:
04]} Bb7 {[%emt 0:00:11]} 5. Bb2 {[%emt 0:00:06]} d5 {[%emt 0:00:24]} 6. Nc3 {
[%emt 0:00:39]} a6 {[%emt 0:00:49]} 7. d4 {[%emt 0:03:55]} Bd6 {[%emt 0:00:52]}
8. cxd5 {[%emt 0:00:06]} exd5 {[%emt 0:00:06]} 9. Bd3 {[%emt 0:00:13]} Nbd7 {
[%emt 0:00:23]} 10. O-O {[%emt 0:00:10]} O-O {[%emt 0:00:06]} 11. Rc1 {[%emt 0:
00:41]} Qe7 {[%emt 0:01:03]} 12. Ne2 {[%emt 0:00:26]} Ne4 {[%emt 0:00:39]} 13.
Qc2 {[%emt 0:00:16]} Rac8 {[%emt 0:00:46]} 14. Nf4 {[%emt 0:00:56]} g5 {
[%emt 0:08:48]} 15. Ne2 {[%emt 0:05:58]} f5 {[%emt 0:00:53]} 16. Ng3 {[%emt 0:
03:15]} g4 {[%emt 0:13:15]} 17. Nd2 {[%emt 0:03:17]} Qh4 {[%emt 0:02:29]} 18.
f4 {[%emt 0:08:54]} Nxg3 {[%emt 0:19:32]} 19. hxg3 {[%emt 0:00:05]} Qxg3 {
[%emt 0:00:04]} 20. Rfe1 {[%emt 0:03:26]} Rce8 {[%emt 0:00:17]} 21. Nf1 {
[%emt 0:01:10]} Qh4 {[%emt 0:00:05]} 22. Bxf5 {[%emt 0:10:14]} Nf6 {[%emt 0:00:
15]} 23. Qf2 {[%emt 0:13:39]} Qxf2+ {[%emt 0:12:28]} 24. Kxf2 {[%emt 0:00:03]}
h5 {[%emt 0:00:17]} 25. g3 {[%emt 0:11:17]} Ne4+ {[%emt 0:13:58]} 26. Bxe4 {
[%emt 0:00:06]} Rxe4 {[%emt 0:00:03]} 27. Nd2 {[%emt 0:00:23]} Re6 {[%emt 0:01:
58]} 28. Rh1 {[%emt 0:11:23]} Rf5 {[%emt 0:00:58]} 29. Nb1 {[%emt 0:03:17]} b5
{[%emt 0:02:20]} 30. a3 {[%emt 0:06:59]} a5 {[%emt 0:04:29]} 31. Nc3 {[%emt 0:
01:27]} c6 {[%emt 0:00:33]} 32. Rc2 {[%emt 0:05:18]} Be7 {[%emt 0:01:05]} 33.
Ne2 {[%emt 0:02:46]} h4 {[%emt 0:03:50]} 34. gxh4 {[%emt 0:00:20]} Rh5 {
[%emt 0:00:04]} 35. Bc1 {[%emt 0:03:02]} Rxh4 {[%emt 0:00:30]} 36. Rxh4 {
[%emt 0:00:36]} Bxh4+ {[%emt 0:00:02]} 37. Kg2 {[%emt 0:00:08]} Bc8 {[%emt 0:
00:47]} 38. Bd2 {[%emt 0:02:34]} Rh6 {[%emt 0:01:21]} 39. e4 {[%emt 0:00:39]}
dxe4 {[%emt 0:00:55]} 40. Bxa5 {[%emt 0:00:22]} e3 {[%emt 0:02:16]} 41. d5 {
[%emt 0:13:25]} Bf5 {[%emt 0:04:42]} 42. Rxc6 {[%emt 0:00:05]} Be4+ {[%emt 0:
00:20]} 43. Kf1 {[%emt 0:00:01]} Rxc6 {[%emt 0:02:47]} 44. dxc6 {[%emt 0:00:06]
} Bxc6 {[%emt 0:01:05]} 45. Be1 {[%emt 0:04:23]} Be7 {[%emt 0:05:41]} 46. Nd4 {
[%emt 0:06:32]} Bf3 {[%emt 0:01:01]} 47. Nxb5 {[%emt 0:01:35]} e2+ {[%emt 0:08:
39]} 48. Kg1 {[%emt 0:00:02]} Kf7 {[%emt 0:01:50]} 49. b4 {[%emt 0:06:05]} Ke6
{[%emt 0:01:42]} 50. Kf2 {[%emt 0:01:46]} Bf6 {[%emt 0:08:34]} 51. Ke3 {
[%emt 0:00:42]} Kf5 {[%emt 0:03:51]} 52. Nd6+ {[%emt 0:00:12]} Ke6 {[%emt 0:00:
31]} 53. Ne4 {[%emt 0:00:35]} Bb2 {[%emt 0:00:51]} 54. Ng5+ {[%emt 0:00:52]}
Kf5 {[%emt 0:00:04]} 55. Nxf3 {[%emt 0:00:09]} gxf3 {[%emt 0:00:03]} 56. Kxf3 {
[%emt 0:00:14]} Bxa3 {[%emt 0:00:08]} 57. b5 {[%emt 0:00:16]} Bd6 {[%emt 0:00:
11]} 58. Kxe2 {[%emt 0:00:46]} Bxf4 {[%emt 0:00:19]} 59. Kd3 {[%emt 0:01:18]}
Ke5 {[%emt 0:00:28]} 60. Kc4 {[%emt 0:00:35]} Kd6 {[%emt 0:00:08]} 61. Ba5 {
[%emt 0:00:25]} 1/2-1/2